Body,Body Name,Date,TransNo,Amount � (Excl VAT),Supplier name,Description,Expense Area,Expense Type,Expense Code,
http://opendatacommunities.org/id/london-borough-council/sutton,London Borough of Sutton,21/07/2020,1299204,4.57 , AMZNMKTPLACE AMAZON.CO,TOYS/EQUIPMENT,Chief Executive's Directorate,Education Equipment,F009,
http://opendatacommunities.org/id/london-borough-council/sutton,London Borough of Sutton,16/07/2020,1299204,46.51 , AMZNMKTPLACE,TOYS/EQUIPMENT,Chief Executive's Directorate,Education Equipment,F009,
http://opendatacommunities.org/id/london-borough-council/sutton,London Borough of Sutton,21/07/2020,1299204,61.70 , ASDA SUPERSTORE,GROCERIES,Chief Executive's Directorate,Refreshments,F155,
http://opendatacommunities.org/id/london-borough-council/sutton,London Borough of Sutton,15/07/2020,1299204,62.50 , ARGOS LTD,BINS,Chief Executive's Directorate,Other Services,F340,
http://opendatacommunities.org/id/london-borough-council/sutton,London Borough of Sutton,11/07/2020,1299204,59.99 , AMZNMKTPLACE,GOODS FOR CLIENT,Peoples Services Directorate,Personal Requisites,F106,
http://opendatacommunities.org/id/london-borough-council/sutton,London Borough of Sutton,10/07/2020,1299204,110.82 , WF  WAYFAIR 3367117214,GOOD FOR CLIENT HOME,Peoples Services Directorate,Personal Requisites,F106,
http://opendatacommunities.org/id/london-borough-council/sutton,London Borough of Sutton,10/07/2020,1299204,16.66 , AMZNMKTPLACE,GOODS FOR CLIENT,Peoples Services Directorate,Personal Requisites,F106,
http://opendatacommunities.org/id/london-borough-council/sutton,London Borough of Sutton,15/07/2020,1299204,8.86 , AMZN MKTP UK 2K31X4K95,PRODUCT FOR CLIENT,Peoples Services Directorate,Client Care/Assistance,H301,
http://opendatacommunities.org/id/london-borough-council/sutton,London Borough of Sutton,30/06/2020,1299204,69.91 , MAILCHIMP,BULK EMAILS,Peoples Services Directorate,Advertising/Publicity (non Staff),F240,
http://opendatacommunities.org/id/london-borough-council/sutton,London Borough of Sutton,21/07/2020,1299204,"1,127.00 ", WWW.INSTANTPRINT.C,INSTANTPRINT 2021 COURSE GUIDE X5000,Peoples Services Directorate,Advertising/Publicity (non Staff),F240,
http://opendatacommunities.org/id/london-borough-council/sutton,London Borough of Sutton,14/07/2020,1299204,45.99 , WWW.INSTANTPRINT.C,INSTANTPRINT A1 X 8 2021 POSTERS,Peoples Services Directorate,Advertising/Publicity (non Staff),F240,
http://opendatacommunities.org/id/london-borough-council/sutton,London Borough of Sutton,14/07/2020,1299204,421.00 , WWW.INSTANTPRINT.C,INSTANTPRINT 2021 FLYERS FOR DISTRIBUTION X50000,Peoples Services Directorate,Advertising/Publicity (non Staff),F240,
http://opendatacommunities.org/id/london-borough-council/sutton,London Borough of Sutton,07/07/2020,1299204,20.40 , WWW.INSTANTPRINT.C,INSTANTPRINT 2021 ENROLMENT FORM PAYMENT TWO (VAT),Peoples Services Directorate,Advertising/Publicity (non Staff),F240,
http://opendatacommunities.org/id/london-borough-council/sutton,London Borough of Sutton,06/07/2020,1299204,102.00 , WWW.INSTANTPRINT.C,INSTANTPRINT 2021 ENROLMENT FORM PAYMENT ONE,Peoples Services Directorate,Advertising/Publicity (non Staff),F240,
http://opendatacommunities.org/id/london-borough-council/sutton,London Borough of Sutton,03/07/2020,1299204,288.00 , BIGARTANDBANNERS,BIGART AND BANNERS - X8 FOR PARKS 2021 PROMO,Peoples Services Directorate,Advertising/Publicity (non Staff),F240,
http://opendatacommunities.org/id/london-borough-council/sutton,London Borough of Sutton,06/07/2020,1299204,155.61 , AMZNMKTPLACE,BATTERIES,Peoples Services Directorate,Health and Safety Equipment,F005,
http://opendatacommunities.org/id/london-borough-council/sutton,London Borough of Sutton,23/07/2020,1299204,333.33 , WWW.INSTANTPRINT.C,SNEEZE GUARDS REF COVID 19,Peoples Services Directorate,Other Equipment - Purchase,F015,
http://opendatacommunities.org/id/london-borough-council/sutton,London Borough of Sutton,30/06/2020,1299204,16.81 , ASDA STORES,COOKERY INGREDIENTS,Peoples Services Directorate,Education Equipment,F009,
http://opendatacommunities.org/id/london-borough-council/sutton,London Borough of Sutton,22/07/2020,1299204,527.50 , SUTTON APPLIANCES,GOODS FOR CLIENT HOME SET UP,Peoples Services Directorate,Personal Requisites,F106,
http://opendatacommunities.org/id/london-borough-council/sutton,London Borough of Sutton,18/07/2020,1299204,25.00 , GIFFGAFF,DR CREDIT PHONE,Peoples Services Directorate,Personal Requisites,F106,
http://opendatacommunities.org/id/london-borough-council/sutton,London Borough of Sutton,01/07/2020,1299204,111.47 , LBSUTTON,AO 1 WEEK,Peoples Services Directorate,Personal Requisites,F106,
http://opendatacommunities.org/id/london-borough-council/sutton,London Borough of Sutton,30/06/2020,1299204,15.50 , PPOINT_ BOTTLE & BASKE,DR GROCERIES,Peoples Services Directorate,Personal Requisites,F106,
http://opendatacommunities.org/id/london-borough-council/sutton,London Borough of Sutton,30/06/2020,1299204,13.98 , WH SMITH,DR MAGAZINES HOISPITAL,Peoples Services Directorate,Personal Requisites,F106,
http://opendatacommunities.org/id/london-borough-council/sutton,London Borough of Sutton,30/06/2020,1299204,29.84 , SUPERDRUG STORES PLC,DR TOILETRIES,Peoples Services Directorate,Personal Requisites,F106,
http://opendatacommunities.org/id/london-borough-council/sutton,London Borough of Sutton,30/06/2020,1299204,39.00 , PEACOCK STORES LTD,DR HOSPITAL CLOTHES,Peoples Services Directorate,Personal Requisites,F106,
http://opendatacommunities.org/id/london-borough-council/sutton,London Borough of Sutton,15/07/2020,1299204,415.83 , LOVE SOFAS,GOODS FOR CLIENT HOME SET UP,Peoples Services Directorate,Client Care/Assistance,H301,
http://opendatacommunities.org/id/london-borough-council/sutton,London Borough of Sutton,14/07/2020,1299204,449.97 , ARGOS LTD,GOODS FOR CLIENT HOME SET UP,Peoples Services Directorate,Client Care/Assistance,H301,
http://opendatacommunities.org/id/london-borough-council/sutton,London Borough of Sutton,10/07/2020,1299204,299.99 , WWW.DONAGHYBROS.CO.UK,GOOD FOR HOME SET UP FOR CLIENT,Peoples Services Directorate,Client Care/Assistance,H301,
http://opendatacommunities.org/id/london-borough-council/sutton,London Borough of Sutton,10/07/2020,1299204,415.83 , WWW.JOHNLEWIS.COM,GOOD FOR CLIENT HOME SET UP,Peoples Services Directorate,Client Care/Assistance,H301,
http://opendatacommunities.org/id/london-borough-council/sutton,London Borough of Sutton,10/07/2020,1299204,553.32 , SUTTON APPLIANCES,GOOD FOR CLIENT HOME SET UP,Peoples Services Directorate,Client Care/Assistance,H301,
http://opendatacommunities.org/id/london-borough-council/sutton,London Borough of Sutton,03/07/2020,1299204,287.48 , WF  WAYFAIR 3112498524,CLIENT HOME SET UP,Peoples Services Directorate,Set Up Costs - Children Leaving Care,H336,
http://opendatacommunities.org/id/london-borough-council/sutton,London Borough of Sutton,21/07/2020,1299204,233.32 , CURRYS ONLINE,GOOD FOR CLIENT HOME,Peoples Services Directorate,Set Up Costs - Children Leaving Care,H336,
http://opendatacommunities.org/id/london-borough-council/sutton,London Borough of Sutton,21/07/2020,1299204,195.81 , ARGOS LTD,PRODUCTS FOR CLIENT HOME,Peoples Services Directorate,Set Up Costs - Children Leaving Care,H336,
http://opendatacommunities.org/id/london-borough-council/sutton,London Borough of Sutton,16/07/2020,1299204,26.67 , ARGOS LTD,GOODS FOR CLIENTS HOME SET UP,Peoples Services Directorate,Set Up Costs - Children Leaving Care,H336,
http://opendatacommunities.org/id/london-borough-council/sutton,London Borough of Sutton,16/07/2020,1299204,537.46 , ARGOS LTD,GOODS FOR CLIENTS HOME SET UP,Peoples Services Directorate,Set Up Costs - Children Leaving Care,H336,
http://opendatacommunities.org/id/london-borough-council/sutton,London Borough of Sutton,15/07/2020,1299204,503.33 , SMART LINE FURNITURE24,CLIENT HOME SET UP,Peoples Services Directorate,Set Up Costs - Children Leaving Care,H336,
http://opendatacommunities.org/id/london-borough-council/sutton,London Borough of Sutton,03/07/2020,1299204,33.32 , AMZNMKTPLACE,AO SET UP,Peoples Services Directorate,Set Up Costs - Children Leaving Care,H336,
http://opendatacommunities.org/id/london-borough-council/sutton,London Borough of Sutton,03/07/2020,1299204,75.00 , ARGOS LTD,AO SET UP,Peoples Services Directorate,Set Up Costs - Children Leaving Care,H336,
http://opendatacommunities.org/id/london-borough-council/sutton,London Borough of Sutton,03/07/2020,1299204,55.91 , B & Q 1191,AO SET UP,Peoples Services Directorate,Set Up Costs - Children Leaving Care,H336,
http://opendatacommunities.org/id/london-borough-council/sutton,London Borough of Sutton,02/07/2020,1299204,891.00 , SUTTON APPLIANCES,AO SSRTTING UP,Peoples Services Directorate,Set Up Costs - Children Leaving Care,H336,
http://opendatacommunities.org/id/london-borough-council/sutton,London Borough of Sutton,29/06/2020,1299204,249.00 , SUTTON APPLIANCES,DR SETTING UP,Peoples Services Directorate,Set Up Costs - Children Leaving Care,H336,
http://opendatacommunities.org/id/london-borough-council/sutton,London Borough of Sutton,26/06/2020,1299204,450.00 , SUTTON APPLIANCES,DR SETTING UP,Peoples Services Directorate,Set Up Costs - Children Leaving Care,H336,
http://opendatacommunities.org/id/london-borough-council/sutton,London Borough of Sutton,25/06/2020,1299204,54.00 , ARGOS LTD,NEW HOME SET UP - CHAIRS,Peoples Services Directorate,Personal Requisites,F106,
http://opendatacommunities.org/id/london-borough-council/sutton,London Borough of Sutton,30/06/2020,1299204,419.96 , WWW.THEGIFTCARDCENTRE.,TESCO GIFTCARDS FOR COMMISSIONING AND NEW SET UP,Peoples Services Directorate,Personal Requisites,F106,
http://opendatacommunities.org/id/london-borough-council/sutton,London Borough of Sutton,25/06/2020,1299204,69.96 , ARGOS LTD,NEW HOME SET UP - OAK TABLE,Peoples Services Directorate,Personal Requisites,F106,
http://opendatacommunities.org/id/london-borough-council/sutton,London Borough of Sutton,25/06/2020,1299204,183.32 , ARGOS LTD,NEW CLIENT HOME SET UP -  TABLE,Peoples Services Directorate,Personal Requisites,F106,
http://opendatacommunities.org/id/london-borough-council/sutton,London Borough of Sutton,14/07/2020,1299204,119.95 , ARGOS LTD,CLIENT SETTING UP HOME,Peoples Services Directorate,Client Care/Assistance,H301,
http://opendatacommunities.org/id/london-borough-council/sutton,London Borough of Sutton,14/07/2020,1299204,(183.32), ARGOS LTD,REFUND FOR GOODS,Peoples Services Directorate,Client Care/Assistance,H301,
http://opendatacommunities.org/id/london-borough-council/sutton,London Borough of Sutton,13/07/2020,1299204,545.81 , ARGOS LTD,GOOD FOR CLIENT HOME SET UP,Peoples Services Directorate,Client Care/Assistance,H301,
http://opendatacommunities.org/id/london-borough-council/sutton,London Borough of Sutton,08/07/2020,1299204,291.66 , ARGOS LTD,CLIENT SET UP HOME,Peoples Services Directorate,Client Care/Assistance,H301,
http://opendatacommunities.org/id/london-borough-council/sutton,London Borough of Sutton,10/07/2020,1299204,20.00 , OYSTER AUTO TOPUP,OYSTER CARD TOP UP,Peoples Services Directorate,Travelling and Subsistence Allowances,A530,
http://opendatacommunities.org/id/london-borough-council/sutton,London Borough of Sutton,24/07/2020,1299204,621.93 , GAR HOTEL RES,HOLIDAY INN SUTTON,Peoples Services Directorate,Accommodation - Bed and Breakfast,H202,
http://opendatacommunities.org/id/london-borough-council/sutton,London Borough of Sutton,17/07/2020,1299204,504.45 , GAR HOTEL RES,ACCOMMODATION FOR CLIENT,Peoples Services Directorate,C.C.A Travel & Subsistance,H212,
http://opendatacommunities.org/id/london-borough-council/sutton,London Borough of Sutton,20/07/2020,1299204,16.67 , TFL AUTOSETTLEMENT,AUTO TOP UP STAFF TRAVEL OYSTER,Peoples Services Directorate,Travelling and Subsistence Allowances,A530,
http://opendatacommunities.org/id/london-borough-council/sutton,London Borough of Sutton,22/07/2020,1299204,60.00 , GEN REGISTER OFFICE,BIRTH CERTIFICATES FOR CLIENT,Peoples Services Directorate,Personal Requisites,F106,
http://opendatacommunities.org/id/london-borough-council/sutton,London Borough of Sutton,08/07/2020,1299204,28.00 , GEN REGISTER OFFICE,BIRTH CERT,Peoples Services Directorate,Personal Requisites,F106,
http://opendatacommunities.org/id/london-borough-council/sutton,London Borough of Sutton,09/07/2020,1299204,11.67 , GEN REGISTER OFFICE,BIRTH CERTIFICATE,Peoples Services Directorate,Personal Requisites,F106,
http://opendatacommunities.org/id/london-borough-council/sutton,London Borough of Sutton,30/06/2020,1299204,79.93 , AMZNMKTPLACE,PHONE STAND HOLDERS,Peoples Services Directorate,Personal Requisites,F106,
http://opendatacommunities.org/id/london-borough-council/sutton,London Borough of Sutton,23/07/2020,1299204,105.00 , LBS REGISTRARS,BIRTH CERT,Peoples Services Directorate,Personal Requisites,F106,
http://opendatacommunities.org/id/london-borough-council/sutton,London Borough of Sutton,08/07/2020,1299204,20.00 , OYSTER BUS AUTOLOAD,OYSTER CARD TOP UP,Peoples Services Directorate,Travelling and Subsistence Allowances,A530,
http://opendatacommunities.org/id/london-borough-council/sutton,London Borough of Sutton,06/07/2020,1299204,9.99 , AMZNMKTPLACE AMAZON.CO,9.99 F106 0318 9999 WAYFAIR.PDF,Peoples Services Directorate,Personal Requisites,F106,
http://opendatacommunities.org/id/london-borough-council/sutton,London Borough of Sutton,08/07/2020,1299204,39.98 , AMZNMKTPLACE AMAZON.CO,FOR CLIENT,Peoples Services Directorate,Personal Requisites,F106,
http://opendatacommunities.org/id/london-borough-council/sutton,London Borough of Sutton,24/07/2020,1299204,220.85 , QUEST APARTMENT HOTEL,HOTEL LIVERPOOL,Peoples Services Directorate,Accommodation - Bed and Breakfast,H202,
http://opendatacommunities.org/id/london-borough-council/sutton,London Borough of Sutton,27/06/2020,1299204,20.00 , OYSTER AUTO TOPUP,OYSTER CARD TOP UP,Peoples Services Directorate,Travelling and Subsistence Allowances,A530,
http://opendatacommunities.org/id/london-borough-council/sutton,London Borough of Sutton,16/07/2020,1299204,114.02 , GOOGLE  ADS5058737870,BALANCING ENTRY AMOUNT (100%),Peoples Services Directorate,Fees - Other,F299,
http://opendatacommunities.org/id/london-borough-council/sutton,London Borough of Sutton,08/07/2020,1299204,10.62 , FACEBK M9DCRV2BL2,SPLIT - FACEBOOK COST (5.31%),Peoples Services Directorate,Fees - Other,F299,
http://opendatacommunities.org/id/london-borough-council/sutton,London Borough of Sutton,24/07/2020,1299204,59.95 , ZOOM.GBP,ZOOM FOR STAFF,Peoples Services Directorate,Subscriptions - General,F450,
http://opendatacommunities.org/id/london-borough-council/sutton,London Borough of Sutton,08/07/2020,1299204,458.33 , MARKS&SPENCER PLC,550.00 H301 0320 9999 MARKS AND SPENCERS.PDF,Peoples Services Directorate,Client Care/Assistance,H301,
http://opendatacommunities.org/id/london-borough-council/sutton,London Borough of Sutton,08/07/2020,1299204,833.33 , MARKS&SPENCER PLC,GIFT CARDS FOR SERVICE,Peoples Services Directorate,Client Care/Assistance,H301,
http://opendatacommunities.org/id/london-borough-council/sutton,London Borough of Sutton,08/07/2020,1299204,833.33 , MARKS&SPENCER PLC,GIFT CARDS FOR SERVICE,Peoples Services Directorate,Client Care/Assistance,H301,
http://opendatacommunities.org/id/london-borough-council/sutton,London Borough of Sutton,20/07/2020,1299204,20.83 , MARKS&SPENCER PLC,FLOWERS FOR STAFF,Peoples Services Directorate,Personal Requisites,F106,
http://opendatacommunities.org/id/london-borough-council/sutton,London Borough of Sutton,08/07/2020,1299204,105.88 , FACEBK M9DCRV2BL2,SPLIT - FACEBOOK COST (52.94%),Peoples Services Directorate,Advertising/Publicity (non Staff),F240,
http://opendatacommunities.org/id/london-borough-council/sutton,London Borough of Sutton,20/07/2020,1299204,16.67 , AUTO TOP-UP ARREARS,AUTO TOP UP STAFF TRAVEL OYSTER,Peoples Services Directorate,Travelling and Subsistence Allowances,A530,
http://opendatacommunities.org/id/london-borough-council/sutton,London Borough of Sutton,20/07/2020,1299204,83.33 , TFL AUTOSETTLEMENT,OYSTER RESETTLEMENT FOR STAFF AUTO TOP UP - TRAVEL,Peoples Services Directorate,Travelling and Subsistence Allowances,A530,
http://opendatacommunities.org/id/london-borough-council/sutton,London Borough of Sutton,20/07/2020,1299204,16.67 , TFL AUTOSETTLEMENT,OYSTER RESETTLEMENT FOR STAFF AUTO TOP UP - TRAVEL,Peoples Services Directorate,Travelling and Subsistence Allowances,A530,
http://opendatacommunities.org/id/london-borough-council/sutton,London Borough of Sutton,20/07/2020,1299204,16.67 , AUTO TOP-UP ARREARS,AUTO TOP UP STAFF TRAVEL OYSTER,Peoples Services Directorate,Travelling and Subsistence Allowances,A530,
http://opendatacommunities.org/id/london-borough-council/sutton,London Borough of Sutton,20/07/2020,1299204,16.67 , TFL AUTOSETTLEMENT,AUTO TOP UP STAFF TRAVEL OYSTER,Peoples Services Directorate,Travelling and Subsistence Allowances,A530,
http://opendatacommunities.org/id/london-borough-council/sutton,London Borough of Sutton,13/07/2020,1299204,11.99 , ZOOM.GBP,SUBSCRIPTION FOR CHILDREN IN CARE COUNCIL,Peoples Services Directorate,LAC - Education,F269,
http://opendatacommunities.org/id/london-borough-council/sutton,London Borough of Sutton,30/06/2020,1299204,105.17 , THE GRANARY,RESEARCH PRACTICE SUBSCRIPTION,Peoples Services Directorate,Personal Requisites,F106,
http://opendatacommunities.org/id/london-borough-council/sutton,London Borough of Sutton,01/07/2020,1299204,45.42 , PREMIER INN,HOTEL FOR SOCIAL WORKER VISITING CLIENT,Peoples Services Directorate,C.C.A Travel & Subsistance,H212,
http://opendatacommunities.org/id/london-borough-council/sutton,London Borough of Sutton,26/07/2020,1299204,4.49 , AMAZON.CO.UK HV8YQ0P15,SPLIT - WRITE YOUR OWN STORYBOOK (66.62%),Peoples Services Directorate,LAC - Education,F269,
http://opendatacommunities.org/id/london-borough-council/sutton,London Borough of Sutton,26/07/2020,1299204,2.25 , AMAZON.CO.UK HV8YQ0P15,BALANCING ENTRY AMOUNT (33.38%),Peoples Services Directorate,LAC - Education,F269,
http://opendatacommunities.org/id/london-borough-council/sutton,London Borough of Sutton,20/07/2020,1299204,8.04 , AMAZON.CO.UK 1O4FA0125,SPLIT - ORCHARD TOYS POP TO THE SHOPS GAME (38.19%),Peoples Services Directorate,LAC - Education,F269,
http://opendatacommunities.org/id/london-borough-council/sutton,London Borough of Sutton,20/07/2020,1299204,5.42 , AMAZON.CO.UK 1O4FA0125,SPLIT - MY FIRST STORY WRITING BOOK: 1 (25.72%),Peoples Services Directorate,LAC - Education,F269,
http://opendatacommunities.org/id/london-borough-council/sutton,London Borough of Sutton,20/07/2020,1299204,5.13 , AMAZON.CO.UK 1O4FA0125,SPLIT - BAD KITTY CAMP DAZE (20.3%),Peoples Services Directorate,LAC - Education,F269,
http://opendatacommunities.org/id/london-borough-council/sutton,London Borough of Sutton,20/07/2020,1299204,3.99 , AMAZON.CO.UK 1O4FA0125,SPLIT - BAD KITTY: PUPPY'S BIG DAY (15.79%),Peoples Services Directorate,LAC - Education,F269,
http://opendatacommunities.org/id/london-borough-council/sutton,London Borough of Sutton,16/07/2020,1299204,5.94 , AMAZON.CO.UK DL8GA5R95,SPLIT - KENSUKE'S KINGDOM (50%),Peoples Services Directorate,LAC - Education,F269,
http://opendatacommunities.org/id/london-borough-council/sutton,London Borough of Sutton,16/07/2020,1299204,5.94 , AMAZON.CO.UK DL8GA5R95,SPLIT - KASPAR: PRINCE OF CATS (50%),Peoples Services Directorate,LAC - Education,F269,
http://opendatacommunities.org/id/london-borough-council/sutton,London Borough of Sutton,16/07/2020,1299204,5.29 , AMAZON.CO.UK A05E45385,"SPLIT - THE MIDNIGHT MYSTERY (DOTTY DETECTIVE, BOOK 3) (32.92%)",Peoples Services Directorate,LAC - Education,F269,
http://opendatacommunities.org/id/london-borough-council/sutton,London Borough of Sutton,16/07/2020,1299204,5.39 , AMAZON.CO.UK A05E45385,"SPLIT - THE LOST PUPPY (DOTTY DETECTIVE, BOOK 4) (33.54%)",Peoples Services Directorate,LAC - Education,F269,
http://opendatacommunities.org/id/london-borough-council/sutton,London Borough of Sutton,16/07/2020,1299204,5.39 , AMAZON.CO.UK A05E45385,"SPLIT - THE PAW PRINT PUZZLE (DOTTY DETECTIVE, BOOK 2) (33.54%)",Peoples Services Directorate,LAC - Education,F269,
http://opendatacommunities.org/id/london-borough-council/sutton,London Borough of Sutton,16/07/2020,1299204,7.00 , AMAZON.CO.UK L29CV0EW5,SPLIT - THE WORLD'S WORST TEACHERS (34.15%),Peoples Services Directorate,LAC - Education,F269,
http://opendatacommunities.org/id/london-borough-council/sutton,London Borough of Sutton,16/07/2020,1299204,7.00 , AMAZON.CO.UK L29CV0EW5,SPLIT - FING (34.15%),Peoples Services Directorate,LAC - Education,F269,
http://opendatacommunities.org/id/london-borough-council/sutton,London Borough of Sutton,16/07/2020,1299204,6.50 , AMAZON.CO.UK L29CV0EW5,SPLIT - THE WORLD'S WORST PARENTS (31.7%),Peoples Services Directorate,LAC - Education,F269,
http://opendatacommunities.org/id/london-borough-council/sutton,London Borough of Sutton,14/07/2020,1299204,22.35 , AMZNMKTPLACE,SPLIT - BUTTERFLY GARDEN GIFT SET WITH 3-5 LIVE CATERPILLARS (86.68%),Peoples Services Directorate,LAC - Education,F269,
http://opendatacommunities.org/id/london-borough-council/sutton,London Borough of Sutton,14/07/2020,1299204,3.43 , AMZNMKTPLACE,BALANCING ENTRY AMOUNT (13.32%),Peoples Services Directorate,LAC - Education,F269,
http://opendatacommunities.org/id/london-borough-council/sutton,London Borough of Sutton,14/07/2020,1299204,22.35 , AMZNMKTPLACE AMAZON.CO,SPLIT - BUTTERFLY GARDEN GIFT SET WITH 3-5 LIVE CATERPILLARS (86.68%),Peoples Services Directorate,LAC - Education,F269,
http://opendatacommunities.org/id/london-borough-council/sutton,London Borough of Sutton,14/07/2020,1299204,3.43 , AMZNMKTPLACE AMAZON.CO,BALANCING ENTRY AMOUNT (13.32%),Peoples Services Directorate,LAC - Education,F269,
http://opendatacommunities.org/id/london-borough-council/sutton,London Borough of Sutton,09/07/2020,1299204,8.99 , AMZNMKTPLACE,SPLIT - PAPERSCAPES THE INCREDIBLE WORLD OF BUGS: TURN THIS BOOK INTO A CREEPY-CRAWLY WORK OF ART (20.9%),Peoples Services Directorate,LAC - Education,F269,
http://opendatacommunities.org/id/london-borough-council/sutton,London Borough of Sutton,09/07/2020,1299204,5.94 , AMZNMKTPLACE,SPLIT - JASPER'S BEANSTALK (13.81%),Peoples Services Directorate,LAC - Education,F269,
http://opendatacommunities.org/id/london-borough-council/sutton,London Borough of Sutton,09/07/2020,1299204,7.80 , AMZNMKTPLACE,SPLIT - BIG BUNCH O' BUGS (21.76%),Peoples Services Directorate,LAC - Education,F269,
http://opendatacommunities.org/id/london-borough-council/sutton,London Borough of Sutton,09/07/2020,1299204,5.77 , AMZNMKTPLACE,SPLIT - MONKEY PUZZLE (13.41%),Peoples Services Directorate,LAC - Education,F269,
http://opendatacommunities.org/id/london-borough-council/sutton,London Borough of Sutton,09/07/2020,1299204,8.49 , AMZNMKTPLACE,SPLIT - CREATURE PEEPER (23.69%),Peoples Services Directorate,LAC - Education,F269,
http://opendatacommunities.org/id/london-borough-council/sutton,London Borough of Sutton,09/07/2020,1299204,5.10 , AMZNMKTPLACE,SPLIT - WHY DO WE NEED BEES? (LIFT-THE-FLAP FIRST QUESTIONS AND ANSWERS): 1 (11.85%),Peoples Services Directorate,LAC - Education,F269,
http://opendatacommunities.org/id/london-borough-council/sutton,London Borough of Sutton,09/07/2020,1299204,(2.33), AMZNMKTPLACE,BALANCING ENTRY AMOUNT (-16.26%),Peoples Services Directorate,LAC - Education,F269,
http://opendatacommunities.org/id/london-borough-council/sutton,London Borough of Sutton,09/07/2020,1299204,5.94 , AMZNMKTPLACE AMAZON.CO,SPLIT - THE VERY HUNGRY CATERPILLAR (166.85%),Peoples Services Directorate,LAC - Education,F269,
http://opendatacommunities.org/id/london-borough-council/sutton,London Borough of Sutton,09/07/2020,1299204,(2.38), AMZNMKTPLACE AMAZON.CO,BALANCING ENTRY AMOUNT (-200.55%),Peoples Services Directorate,LAC - Education,F269,
http://opendatacommunities.org/id/london-borough-council/sutton,London Borough of Sutton,09/07/2020,1299204,5.94 , AMZNMKTPLACE,SPLIT - THE VERY HUNGRY CATERPILLAR (166.85%),Peoples Services Directorate,LAC - Education,F269,
http://opendatacommunities.org/id/london-borough-council/sutton,London Borough of Sutton,09/07/2020,1299204,(2.38), AMZNMKTPLACE,BALANCING ENTRY AMOUNT (-200.55%),Peoples Services Directorate,LAC - Education,F269,
http://opendatacommunities.org/id/london-borough-council/sutton,London Borough of Sutton,09/07/2020,1299204,5.10 , AMZNMKTPLACE AMAZON.CO,SPLIT - WHY DO WE NEED BEES? (LIFT-THE-FLAP FIRST QUESTIONS AND ANSWERS): 1 (11.85%),Peoples Services Directorate,LAC - Education,F269,
http://opendatacommunities.org/id/london-borough-council/sutton,London Borough of Sutton,09/07/2020,1299204,8.99 , AMZNMKTPLACE AMAZON.CO,SPLIT - PAPERSCAPES THE INCREDIBLE WORLD OF BUGS: TURN THIS BOOK INTO A CREEPY-CRAWLY WORK OF ART (20.9%),Peoples Services Directorate,LAC - Education,F269,
http://opendatacommunities.org/id/london-borough-council/sutton,London Borough of Sutton,09/07/2020,1299204,8.49 , AMZNMKTPLACE AMAZON.CO,SPLIT - CREATURE PEEPER (23.69%),Peoples Services Directorate,LAC - Education,F269,
http://opendatacommunities.org/id/london-borough-council/sutton,London Borough of Sutton,09/07/2020,1299204,5.77 , AMZNMKTPLACE AMAZON.CO,SPLIT - MONKEY PUZZLE (13.41%),Peoples Services Directorate,LAC - Education,F269,
http://opendatacommunities.org/id/london-borough-council/sutton,London Borough of Sutton,09/07/2020,1299204,5.94 , AMZNMKTPLACE AMAZON.CO,SPLIT - JASPER'S BEANSTALK (13.81%),Peoples Services Directorate,LAC - Education,F269,
http://opendatacommunities.org/id/london-borough-council/sutton,London Borough of Sutton,09/07/2020,1299204,7.80 , AMZNMKTPLACE AMAZON.CO,SPLIT - BIG BUNCH O' BUGS (21.76%),Peoples Services Directorate,LAC - Education,F269,
http://opendatacommunities.org/id/london-borough-council/sutton,London Borough of Sutton,09/07/2020,1299204,(2.33), AMZNMKTPLACE AMAZON.CO,BALANCING ENTRY AMOUNT (-16.26%),Peoples Services Directorate,LAC - Education,F269,
http://opendatacommunities.org/id/london-borough-council/sutton,London Borough of Sutton,07/07/2020,1299204,33.73 , AMZNMKTPLACE,SPLIT - ARTWORX 125 PIECE ART STUDIO WITH ALUMINIUM CASE - BLUE (94.27%),Peoples Services Directorate,LAC - Education,F269,
http://opendatacommunities.org/id/london-borough-council/sutton,London Borough of Sutton,07/07/2020,1299204,2.05 , AMZNMKTPLACE,BALANCING ENTRY AMOUNT (5.73%),Peoples Services Directorate,LAC - Education,F269,
http://opendatacommunities.org/id/london-borough-council/sutton,London Borough of Sutton,07/07/2020,1299204,9.46 , AMZNMKTPLACE AMAZON.CO,SPLIT - LEARNING RESOURCES MATHLINK MATHS CUBES (SET OF 100) 4285 (82.01%),Peoples Services Directorate,LAC - Education,F269,
http://opendatacommunities.org/id/london-borough-council/sutton,London Borough of Sutton,07/07/2020,1299204,2.07 , AMZNMKTPLACE AMAZON.CO,BALANCING ENTRY AMOUNT (17.99%),Peoples Services Directorate,LAC - Education,F269,
http://opendatacommunities.org/id/london-borough-council/sutton,London Borough of Sutton,07/07/2020,1299204,7.95 , AMZNMKTPLACE,SPLIT - NEW FUNCTIONAL SKILLS ENGLISH: EDEXCEL LEVEL 1 - STUDY & TEST PRACTICE (FOR 2020 & BEYOND) (CGP FUNCTIONAL SKILLS) (27.63%),Peoples Services Directorate,LAC - Education,F269,
http://opendatacommunities.org/id/london-borough-council/sutton,London Borough of Sutton,07/07/2020,1299204,7.31 , AMZNMKTPLACE,SPLIT - NEW FUNCTIONAL SKILLS MATHS LEVEL 1 - STUDY & TEST PRACTICE (FOR 2019 & BEYOND) (CGP FUNCTIONAL SKILLS) (25.41%),Peoples Services Directorate,LAC - Education,F269,
http://opendatacommunities.org/id/london-borough-council/sutton,London Borough of Sutton,07/07/2020,1299204,13.51 , AMZNMKTPLACE,SPLIT - HOW TO DRAW COOL STUFF: A DRAWING GUIDE FOR TEACHERS AND STUDENTS (46.96%),Peoples Services Directorate,LAC - Education,F269,
http://opendatacommunities.org/id/london-borough-council/sutton,London Borough of Sutton,06/07/2020,1299204,5.29 , AMAZON.CO.UK U36F82GV5,SPLIT - RSPB FIRST BOOK OF MINIBEASTS (100%),Peoples Services Directorate,LAC - Education,F269,
http://opendatacommunities.org/id/london-borough-council/sutton,London Borough of Sutton,06/07/2020,1299204,6.19 , AMAZON.CO.UK KB18X7OC5,SPLIT - NUMBERBLOCKS ANNUAL 2020 (34.97%),Peoples Services Directorate,LAC - Education,F269,
http://opendatacommunities.org/id/london-borough-council/sutton,London Borough of Sutton,06/07/2020,1299204,9.00 , AMAZON.CO.UK KB18X7OC5,SPLIT - ORCHARD TOYS MAGIC MATHS GAME (50.83%),Peoples Services Directorate,LAC - Education,F269,
http://opendatacommunities.org/id/london-borough-council/sutton,London Borough of Sutton,06/07/2020,1299204,1.34 , AMAZON.CO.UK KB18X7OC5,SPLIT - PROBLEM SOLVING AND REASONING AGES 5-7: PREPARE FOR SCHOOL WITH EASY HOME LEARNING (COLLINS EASY LEARNING KS1) (14.2%),Peoples Services Directorate,LAC - Education,F269,
http://opendatacommunities.org/id/london-borough-council/sutton,London Borough of Sutton,06/07/2020,1299204,5.94 , AMAZON.CO.UK D73TV1IX5,SPLIT - SHH! WE HAVE A PLAN (35.09%),Peoples Services Directorate,LAC - Education,F269,
http://opendatacommunities.org/id/london-borough-council/sutton,London Borough of Sutton,06/07/2020,1299204,9.16 , AMAZON.CO.UK D73TV1IX5,SPLIT - ORCHARD TOYS POST BOX GAME (64.91%),Peoples Services Directorate,LAC - Education,F269,
http://opendatacommunities.org/id/london-borough-council/sutton,London Borough of Sutton,02/07/2020,1299204,3.58 , AMZNMKTPLACE AMAZON.CO,SPLIT - SILVINE A5 EXECUTIVE SOFT FEEL NOTEBOOK BLACK. 160 PAGES (80 SHEETS) RULED 7MM FEINT. REF 197BK (148 X 212MM) (100%),Peoples Services Directorate,LAC - Education,F269,
http://opendatacommunities.org/id/london-borough-council/sutton,London Borough of Sutton,01/07/2020,1299204,4.70 , AMAZON.CO.UK 784MP9RG5,SPLIT - HANDWRITING TODAY: BK. 1 (HANDWRITING TODAY) (50.11%),Peoples Services Directorate,LAC - Education,F269,
http://opendatacommunities.org/id/london-borough-council/sutton,London Borough of Sutton,01/07/2020,1299204,4.68 , AMAZON.CO.UK 784MP9RG5,SPLIT - HANDWRITING TODAY: BK. 2 (HANDWRITING TODAY) (49.89%),Peoples Services Directorate,LAC - Education,F269,
http://opendatacommunities.org/id/london-borough-council/sutton,London Borough of Sutton,29/06/2020,1299204,6.60 , AMAZON.CO.UK PV5GL7Y75,SPLIT - ORCHARD TOYS DIRTY DINOS (53.08%),Peoples Services Directorate,LAC - Education,F269,
http://opendatacommunities.org/id/london-borough-council/sutton,London Borough of Sutton,29/06/2020,1299204,5.83 , AMAZON.CO.UK PV5GL7Y75,SPLIT - ORCHARD TOYS SHOPPING LIST GAME (46.92%),Peoples Services Directorate,LAC - Education,F269,
http://opendatacommunities.org/id/london-borough-council/sutton,London Borough of Sutton,26/06/2020,1299204,127.20 , WWW.FURNITUREATWORK.CO,FURNITURE FOR CANDICE M,"Environment, Housing & Regeneration Directorate",Purchase of IT Equipment,F380,
http://opendatacommunities.org/id/london-borough-council/sutton,London Borough of Sutton,26/06/2020,1299204,109.99 , BOX LIMITED,MONITOR FOR CANDICE M,"Environment, Housing & Regeneration Directorate",Purchase of IT Equipment,F380,
http://opendatacommunities.org/id/london-borough-council/sutton,London Borough of Sutton,02/07/2020,1299204,"1,613.00 ", XL DISPLAYS LTD,SOCIAL DISTANCING EQUIPMENT,"Environment, Housing & Regeneration Directorate",Other Equipment - Purchase,F015,
http://opendatacommunities.org/id/london-borough-council/sutton,London Borough of Sutton,21/07/2020,1299204,7.89 , B & Q 1191,YARD BROOM FOR REGISTER OFFICE,Resources Directorate,Miscellaneous Expenses,F620,
http://opendatacommunities.org/id/london-borough-council/sutton,London Borough of Sutton,03/07/2020,1299204,8.32 , SPOTIFY UK,MUSIC FOR WEDDINGS,Resources Directorate,Miscellaneous Expenses,F620,
http://opendatacommunities.org/id/london-borough-council/sutton,London Borough of Sutton,01/07/2020,1299204,145.92 , DUNELM,SILK FLOWERS FOR MARRIAGE ROOM,Resources Directorate,Miscellaneous Expenses,F620,
http://opendatacommunities.org/id/london-borough-council/sutton,London Borough of Sutton,29/06/2020,1299204,6.67 , WM MORRISONS STORE,TISSUES/PLANTS FOR GARDEN,Resources Directorate,Miscellaneous Expenses,F620,
http://opendatacommunities.org/id/london-borough-council/sutton,London Borough of Sutton,13/07/2020,1299204,0.44 , ZOOM.GBP,SOFTWARE FOR PROCUREMENT TRAINING,Resources Directorate,Purchase of Software,F381,
http://opendatacommunities.org/id/london-borough-council/sutton,London Borough of Sutton,11/07/2020,1299204,15.92 , SCREENCASTIFY PREMIUM,SOFTWARE FOR PROCUREMENT TRAINING,Resources Directorate,Purchase of Software,F381,
http://opendatacommunities.org/id/london-borough-council/sutton,London Borough of Sutton,14/07/2020,1299204,220.17 , MAILCHIMP    MONTHLY,WEB HOSTING,Resources Directorate,Fees - Computer Software,F384,
http://opendatacommunities.org/id/london-borough-council/sutton,London Borough of Sutton,15/07/2020,1299204,6.05 , MAILCHIMP    MONTHLY,WEB HOSTING,Resources Directorate,Fees - Computer Software,F384,
http://opendatacommunities.org/id/london-borough-council/sutton,London Borough of Sutton,26/06/2020,1299204,119.00 , STAPLES.CO.UK,STAPLES,Resources Directorate,Furniture - Purchase,F080,
http://opendatacommunities.org/id/london-borough-council/sutton,London Borough of Sutton,07/07/2020,1299204,(54.00), ARGOS LTD,WE CANNOT LOCATE RECEIPT FOR THIS REFUND,Resources Directorate,Personal Requisites,F106,
http://opendatacommunities.org/id/london-borough-council/sutton,London Borough of Sutton,30/06/2020,1299204,58.33 , AMZNMKTPLACE AMAZON.CO,SCANNER,Resources Directorate,Personal Requisites,F106,
http://opendatacommunities.org/id/london-borough-council/sutton,London Borough of Sutton,06/07/2020,1299204,57.00 , INTERFLORA BRITISH UNI,RETIREMENT,Resources Directorate,Personal Requisites,F106,
http://opendatacommunities.org/id/london-borough-council/sutton,London Borough of Sutton,06/07/2020,1299204,57.00 , INTERFLORA BRITISH UNI,RETIREMENT,Resources Directorate,Personal Requisites,F106,
http://opendatacommunities.org/id/london-borough-council/sutton,London Borough of Sutton,26/06/2020,1299204,261.25 , WWW.DIRECT-FUNDRAISING,MAYOR'S CHARITY BUCKETS PLUS LABELS (50 BUCKETS),Resources Directorate,Materials - General,F100,
http://opendatacommunities.org/id/london-borough-council/sutton,London Borough of Sutton,08/07/2020,1299204,33.50 , FACEBK M9DCRV2BL2,SPLIT - FACEBOOK COST (16.75%),Resources Directorate,Corporate Publicity,F356,
http://opendatacommunities.org/id/london-borough-council/sutton,London Borough of Sutton,02/07/2020,1299204,0.90 , FOREIGN EXCHANGE FEE,ADVERTISING,Resources Directorate,Corporate Publicity,F356,
http://opendatacommunities.org/id/london-borough-council/sutton,London Borough of Sutton,01/07/2020,1299204,27.29 , TRANSLATED.COM,TRANSLATING SERVICES,Resources Directorate,Corporate Publicity,F356,
http://opendatacommunities.org/id/london-borough-council/sutton,London Borough of Sutton,01/07/2020,1299204,0.90 , FOREIGN EXCHANGE FEE,ADVERTISING,Resources Directorate,Corporate Publicity,F356,
http://opendatacommunities.org/id/london-borough-council/sutton,London Borough of Sutton,29/06/2020,1299204,19.58 , LINKEDIN 5696409904 LN,LINKEDIN ADVERTISING,Resources Directorate,Corporate Publicity,F356,
http://opendatacommunities.org/id/london-borough-council/sutton,London Borough of Sutton,26/06/2020,1299204,63.75 , DOMINO'S PIZZA,COMMUNITY HUB VOLUNTEERS/STAFF SUBSISTENCE,Resources Directorate,Travelling and Subsistence Allowances,A530,
http://opendatacommunities.org/id/london-borough-council/sutton,London Borough of Sutton,01/07/2020,1299204,466.60 , ASDA STORES,COMMUNITY FOOD HUB - FOOD STOCK,Resources Directorate,Assistance to Voluntary Organisations,F471,
http://opendatacommunities.org/id/london-borough-council/sutton,London Borough of Sutton,24/07/2020,1299204,99.99 , ARGOS LTD,CL&G,Resources Directorate,Grants,F473,
http://opendatacommunities.org/id/london-borough-council/sutton,London Borough of Sutton,24/07/2020,1299204,710.93 , ARGOS LTD,CL&G,Resources Directorate,Grants,F473,
http://opendatacommunities.org/id/london-borough-council/sutton,London Borough of Sutton,23/07/2020,1299204,149.99 , ARGOS LTD,CL&G,Resources Directorate,Grants,F473,
http://opendatacommunities.org/id/london-borough-council/sutton,London Borough of Sutton,23/07/2020,1299204,261.94 , ARGOS LTD,CL&G,Resources Directorate,Grants,F473,
http://opendatacommunities.org/id/london-borough-council/sutton,London Borough of Sutton,09/07/2020,1299204,179.99 , ARGOS LTD,CL&G,Resources Directorate,Grants,F473,
http://opendatacommunities.org/id/london-borough-council/sutton,London Borough of Sutton,07/07/2020,1299204,82.95 , ARGOS LTD,CL&G,Resources Directorate,Grants,F473,
http://opendatacommunities.org/id/london-borough-council/sutton,London Borough of Sutton,03/07/2020,1299204,219.99 , ARGOS LTD,CL&G,Resources Directorate,Grants,F473,
http://opendatacommunities.org/id/london-borough-council/sutton,London Borough of Sutton,03/07/2020,1299204,368.99 , ARGOS LTD,CL&G,Resources Directorate,Grants,F473,
http://opendatacommunities.org/id/london-borough-council/sutton,London Borough of Sutton,03/07/2020,1299204,103.94 , ARGOS LTD,CL&G,Resources Directorate,Grants,F473,
http://opendatacommunities.org/id/london-borough-council/sutton,London Borough of Sutton,16/07/2020,1299204,103.94 , ARGOS LTD,PURCHASE OF MINI OVEN FOR CRISIS GRANT,Resources Directorate,Grants,F473,
http://opendatacommunities.org/id/london-borough-council/sutton,London Borough of Sutton,16/07/2020,1299204,185.95 , ARGOS LTD,PURCHASE OF DOUBLE MATTRESS FOR CRISIS GRANT,Resources Directorate,Grants,F473,
http://opendatacommunities.org/id/london-borough-council/sutton,London Borough of Sutton,16/07/2020,1299204,149.99 , ARGOS LTD,PURCHASE OF FRIDGE FREEZER FOR CRISIS GRANT,Resources Directorate,Grants,F473,
http://opendatacommunities.org/id/london-borough-council/sutton,London Borough of Sutton,14/07/2020,1299204,103.94 , ARGOS LTD,PURCHASE OF MINI OVEN FOR CRISIS GRANT,Resources Directorate,Grants,F473,
http://opendatacommunities.org/id/london-borough-council/sutton,London Borough of Sutton,13/07/2020,1299204,129.99 , ARGOS LTD,PURCHASE OF FRIDGE FREEZER FOR CRISIS GRANT,Resources Directorate,Grants,F473,
http://opendatacommunities.org/id/london-borough-council/sutton,London Borough of Sutton,09/07/2020,1299204,27.00 , WWW.GOV.UK,18 PROBATE CERTS,Resources Directorate,General Office Expenses,F235,
http://opendatacommunities.org/id/london-borough-council/sutton,London Borough of Sutton,03/07/2020,1299204,6.34 , AWS EMEA,UNRECOGNIGSED TRANSACTION AWAITING REFUND,Resources Directorate,Fees - Other,F299,
http://opendatacommunities.org/id/london-borough-council/sutton,London Borough of Sutton,23/07/2020,1299204,166.39 , FACEBK GGCHVU6AL2,ADVERTISING,Resources Directorate,Fees - Other,F299,
http://opendatacommunities.org/id/london-borough-council/sutton,London Borough of Sutton,29/06/2020,1299204,73.52 , BANNER BOX,ADVERTISING,Resources Directorate,Fees - Other,F299,
http://opendatacommunities.org/id/london-borough-council/sutton,London Borough of Sutton,01/07/2020,1299204,91.53 , STORAGEMART UK A-DCC21,STORAGE FOR CLIENT GOODS,Peoples Services Directorate,Offsite Storage,F231,
http://opendatacommunities.org/id/london-borough-council/sutton,London Borough of Sutton,08/07/2020,1299204,51.25 , PREMIER INN,PREMIER INN,Peoples Services Directorate,C.C.A Travel & Subsistance,H212,
http://opendatacommunities.org/id/london-borough-council/sutton,London Borough of Sutton,02/07/2020,1299204,13.00 , POUNDLAND LTD 1211,13 POUNLAND PPE BIN BAGS FOR PPE PACKS.PDF,Peoples Services Directorate,Personal Requisites,F106,
http://opendatacommunities.org/id/london-borough-council/sutton,London Borough of Sutton,09/07/2020,1299204,42.25 , WILKO RETAIL LIMITED,50.70 - F106 6452 6619 - WILKO BIN BAGS FOR PPE.PDF,Peoples Services Directorate,Personal Requisites,F106,
http://opendatacommunities.org/id/london-borough-council/sutton,London Borough of Sutton,22/07/2020,1299204,11.00 , LBSUTTON MOTO,DEATH CERTIFICATE,Peoples Services Directorate,Burials/Cremations,H303,
http://opendatacommunities.org/id/london-borough-council/sutton,London Borough of Sutton,15/07/2020,1299204,11.00 , LBS REGISTRARS,DEATH CERTIFICATE,Peoples Services Directorate,Burials/Cremations,H303,
http://opendatacommunities.org/id/london-borough-council/sutton,London Borough of Sutton,15/07/2020,1299204,11.00 , LBS REGISTRARS,DEATH CERTIFICATE,Peoples Services Directorate,Burials/Cremations,H303,
http://opendatacommunities.org/id/london-borough-council/sutton,London Borough of Sutton,01/07/2020,1299204,90.00 , ALLIUM,ALLIUM,Peoples Services Directorate,Burials/Cremations,H303,
http://opendatacommunities.org/id/london-borough-council/sutton,London Borough of Sutton,10/07/2020,1299204,426.60 , HEALTHCARE CONFERENCES,HEALTH CARE CONFERENCE : CALDICOTT GUARDIAN 18TH SEPTEMBER 2020,Peoples Services Directorate,Training - Course Fees,A520,
http://opendatacommunities.org/id/london-borough-council/sutton,London Borough of Sutton,14/07/2020,1299204,265.65 , AMAZON.CO.UK AU0SX11G5,15 X SAFEGUARDING ADULTS UNDER THE CARE ACT 2014: UNDERSTANDING GOOD PRACTICE (KNOWLEDGE IN PRACTICE) BOOKS,Peoples Services Directorate,Books,F006,
http://opendatacommunities.org/id/london-borough-council/sutton,London Borough of Sutton,30/06/2020,1299204,39.99 , NOUNPROJECT.COM,SPLIT - NOUNTEAM (39.99/YR) (122.59%),Chief Executive's Directorate,Subscriptions - General,F450,
http://opendatacommunities.org/id/london-borough-council/sutton,London Borough of Sutton,30/06/2020,1299204,(7.37), NOUNPROJECT.COM,BALANCING ENTRY AMOUNT (-67.77%),Chief Executive's Directorate,Subscriptions - General,F450,
http://opendatacommunities.org/id/london-borough-council/sutton,London Borough of Sutton,08/07/2020,1299204,50.00 , FACEBK M9DCRV2BL2,SPLIT - FACEBOOK COST (25%),Peoples Services Directorate,Corporate Publicity,F356,
